lending/lending_fUSD_20240110
["ID","MTS","AMOUNT","RATE_DAILY","PERIOD"]
[311085462,1704900655538,-243.91387663,0.00030684,2]
[311085463,1704900655547,-500.0,0.00030684,2]
[311085464,1704900655557,-583.89202862,0.00030684,2]
[311085465,1704900655567,-500.0,0.00030684,2]
[311085466,1704900655576,-500.0,0.00030684,2]
[311085467,1704900655586,-500.0,0.00030684,2]
[311085468,1704900655595,-612.21,0.00030684,2]
[311085469,1704900655606,-500.0,0.00030684,2]
[311085470,1704900655615,-500.0,0.00030684,2]
[311085471,1704900655625,-500.0,0.00030684,2]
[311085472,1704900655634,-500.0,0.00030684,2]
[311085473,1704900655644,-500.0,0.00030684,2]
[311085474,1704900655653,-500.0,0.00030684,2]
[311085475,1704900655662,-500.0,0.00030684,2]
[311085476,1704900655671,-500.0,0.00030684,2]
[311085477,1704900655680,-500.0,0.00030684,2]
[311085478,1704900655689,-500.0,0.00030684,2]
[311085479,1704900655699,-500.0,0.00030684,2]
[311085480,1704900655708,-500.0,0.00030684,2]
[311085481,1704900655718,-264.69313489,0.00030684,2]
[311085482,1704900655727,-500.0,0.00030684,2]
[311085483,1704900655737,-500.0,0.00030684,2]
[311085484,1704900655746,-235.30055167,0.00030684,2]
[311085485,1704900655757,-500.0,0.00030684,2]
[311085486,1704900655767,-602.62483879,0.00030684,2]
[311085487,1704900655777,-500.0,0.00030684,2]
[311085488,1704900655786,-299.40219498,0.00030684,2]
[311085489,1704900655796,-500.0,0.00030684,2]
[311085490,1704900655805,-500.0,0.00030684,2]
[311085491,1704900655815,-500.0,0.00030684,2]
[311085492,1704900655824,-1525.56,0.00030684,2]
[311085493,1704900655834,-500.0,0.00030684,2]
[311085494,1704900655844,-647.14313501,0.00030684,2]
[311085495,1704900655853,-500.0,0.00030684,2]
[311085496,1704900655862,-500.0,0.00030684,2]
[311085497,1704900655871,-728.56,0.00030684,2]
[311085498,1704900655881,-1118.0,0.00030684,2]
[311085499,1704900655890,-500.0,0.00030684,4]
[311085500,1704900655900,-500.0,0.00030684,2]
[311085501,1704900655909,-633.51195471,0.00030684,2]
[311085502,1704900655918,-500.0,0.00030684,2]
[311085503,1704900655927,-500.0,0.00030684,2]
[311085504,1704900655937,-500.0,0.00030684,2]
[311085505,1704900655947,-515.88,0.00030684,2]
[311085506,1704900655957,-500.0,0.00030684,2]
[311085507,1704900655966,-160.11011625,0.00030684,2]
[311085508,1704900655975,-923.52,0.00030684,2]
[311085509,1704900655984,-500.0,0.00030684,2]
[311085510,1704900655994,-500.0,0.00030684,2]
[311085511,1704900656003,-156.54147557,0.00030684,2]
[311085512,1704900656013,-500.0,0.00030684,2]
[311085513,1704900656023,-500.0,0.00030684,2]
[311085514,1704900656032,-817.14,0.00030684,2]
[311085515,1704900656041,-500.0,0.00030684,2]
[311085516,1704900656050,-500.0,0.00030684,2]
[311085517,1704900656059,-500.0,0.00030684,2]
[311085518,1704900656068,-500.0,0.00030684,2]
[311085519,1704900656077,-500.0,0.00030684,2]
[311085520,1704900656086,-500.0,0.00030684,2]
[311085521,1704900656096,-500.0,0.00030684,2]
[311085522,1704900656105,-500.0,0.00030684,2]
[311085523,1704900656115,-500.0,0.00030684,2]
[311085524,1704900656126,-500.0,0.00030684,2]
[311085525,1704900656135,-500.0,0.00030684,2]
[311085526,1704900656145,-280.42686336,0.00030684,2]
[311085527,1704900656155,-500.0,0.00030684,2]
[311085528,1704900656165,-198.44988091,0.00030684,2]
[311085529,1704900656175,-500.0,0.00030684,2]
[311085530,1704900656184,-500.0,0.00030684,2]
[311085531,1704900656193,-500.0,0.00030684,2]
[311085532,1704900656203,-500.0,0.00030684,2]
[311085533,1704900656212,-2525.24,0.00030684,2]
[311085534,1704900656222,-500.0,0.00030684,2]
[311085535,1704900656231,-482.73562307,0.00030684,2]
[311085536,1704900656241,-500.0,0.00030684,2]
[311085537,1704900656250,-500.0,0.00030684,2]
[311085538,1704900656262,-500.0,0.00030684,2]
[311085539,1704900656272,-500.0,0.00030684,2]
[311085540,1704900656280,-500.0,0.00030684,2]
[311085541,1704900656290,-500.0,0.00030684,2]
[311085542,1704900656299,-500.0,0.00030684,2]
[311085543,1704900656308,-500.0,0.00030684,2]
[311085544,1704900656317,-500.0,0.00030684,2]
[311085545,1704900656326,-500.0,0.00030684,2]
[311085546,1704900656336,-500.0,0.00030684,2]
[311085547,1704900656345,-1570.45,0.00030684,2]
[311085548,1704900656354,-334.64016488,0.00030684,2]
[311085549,1704900656364,-500.0,0.00030684,2]
[311085550,1704900656373,-500.0,0.00030684,2]
[311085551,1704900656382,-500.0,0.00030684,2]
[311085552,1704900656392,-500.0,0.00030684,2]
[311085553,1704900656400,-500.0,0.00030684,2]
[311085554,1704900656410,-500.0,0.00030684,2]
[311085555,1704900656418,-500.0,0.00030684,2]
[311085556,1704900656428,-500.0,0.00030684,2]
[311085557,1704900656437,-500.0,0.00030684,2]
[311085558,1704900656446,-635.68,0.00030684,2]
[311085559,1704900656455,-500.0,0.00030684,2]
[311085560,1704900656464,-549.14,0.00030684,2]
[311085561,1704900656473,-500.0,0.00030684,2]
[311085562,1704900656482,-500.0,0.00030684,2]
[311085563,1704900656491,-1087.18,0.00030684,2]
[311085564,1704900656500,-500.0,0.00030684,2]
[311085565,1704900656513,-500.0,0.00030684,2]
[311085566,1704900656522,-500.0,0.00030684,2]
[311085567,1704900656532,-1006.97,0.00030684,2]
[311085568,1704900656542,-500.0,0.00030684,2]
[311085569,1704900656551,-500.0,0.00030684,2]
[311085570,1704900656560,-500.0,0.00030684,2]
[311085571,1704900656569,-500.0,0.00030684,2]
[311085572,1704900656578,-500.0,0.00030684,2]
[311085573,1704900656587,-500.0,0.00030684,2]
[311085574,1704900656597,-500.0,0.00030684,2]
[311085575,1704900656606,-821.81,0.00030684,2]
[311085576,1704900656615,-500.0,0.00030684,2]
[311085577,1704900656624,-500.0,0.00030684,2]
[311085578,1704900656634,-652.25,0.00030684,2]
[311085579,1704900656643,-500.0,0.00030684,2]
[311085580,1704900656652,-500.0,0.00030684,2]
[311085581,1704900656661,-459.89614071,0.00030684,2]
[311085582,1704900656670,-500.0,0.00030684,2]
[311085583,1704900656679,-500.0,0.00030684,2]
[311085584,1704900656688,-500.0,0.00030684,2]
[311085585,1704900656698,-500.0,0.00030684,2]
[311085586,1704900656707,-804.63,0.00030684,2]
[311085587,1704900656716,-500.0,0.00030684,2]
[311085588,1704900656725,-500.0,0.00030684,2]
[311085589,1704900656734,-500.0,0.00030684,2]
[311085590,1704900656744,-500.0,0.00030684,2]
[311085591,1704900656754,-559.71,0.00030684,2]
[311085592,1704900656764,-500.0,0.00030684,2]
[311085593,1704900656773,-734.66,0.00030684,2]
[311085594,1704900656783,-500.0,0.00030684,2]
[311085595,1704900656792,-500.0,0.00030684,2]
[311085596,1704900656801,-500.0,0.00030684,2]
[311085597,1704900656811,-500.0,0.00030684,2]
[311085598,1704900656820,-500.0,0.00030684,2]
[311085599,1704900656829,-500.0,0.00030684,2]
[311085600,1704900656839,-500.0,0.00030684,2]
[311085601,1704900656848,-942.99,0.00030684,2]
[311085602,1704900656857,-500.0,0.00030684,2]
[311085603,1704900656866,-500.0,0.00030684,2]
[311085604,1704900656875,-500.0,0.00030684,2]
[311085605,1704900656884,-346.93664038,0.00030684,2]
[311085606,1704900656894,-500.0,0.00030684,2]
[311085607,1704900656903,-515.12812694,0.00030684,2]
[311085608,1704900656912,-500.0,0.00030684,2]
[311085609,1704900656921,-500.0,0.00030684,2]
[311085610,1704900656930,-500.0,0.00030684,2]
[311085611,1704900656939,-500.0,0.00030684,2]
[311085612,1704900656948,-500.0,0.00030684,2]
[311085613,1704900656957,-500.0,0.00030684,2]
[311085614,1704900656966,-500.0,0.00030684,2]
[311085615,1704900656975,-500.0,0.00030684,2]
[311085616,1704900656985,-500.0,0.00030684,2]
[311085617,1704900656996,-500.0,0.00030684,2]
[311085618,1704900657005,-500.0,0.00030684,2]
[311085619,1704900657014,-500.0,0.00030684,2]
[311085620,1704900657023,-500.0,0.00030684,2]
[311085621,1704900657032,-500.0,0.00030684,2]
[311085622,1704900657041,-286.97319764,0.00030684,2]
[311085623,1704900657050,-392.30229035,0.00030684,2]
[311085624,1704900657059,-500.0,0.00030684,2]
[311085625,1704900657068,-500.0,0.00030684,2]
[311085626,1704900657078,-500.0,0.00030684,2]
[311085627,1704900657087,-500.0,0.00030684,2]
[311085628,1704900657096,-218.94563763,0.00030684,2]
[311085629,1704900657106,-500.0,0.00030684,2]
[311085630,1704900657115,-500.0,0.00030684,2]
[311085631,1704900657124,-500.0,0.00030684,2]
[311085632,1704900657133,-500.0,0.00030684,2]
[311085633,1704900657142,-500.0,0.00030684,2]
[311085634,1704900657151,-1066.85,0.00030684,2]
[311085635,1704900657161,-500.0,0.00030684,2]
[311085636,1704900657170,-577.30678248,0.00030684,2]
[311085637,1704900657180,-500.0,0.00030684,2]
[311085638,1704900657189,-500.0,0.00030684,2]
[311085639,1704900657200,-500.0,0.00030684,2]
[311085640,1704900657209,-500.0,0.00030684,2]
[311085641,1704900657219,-694.05,0.00030684,2]
[311085642,1704900657228,-500.0,0.00030684,2]
[311085643,1704900657237,-500.0,0.00030684,2]
[311085644,1704900657246,-150.0,0.00030684,2]
[311085645,1704900657256,-250.0,0.00030684,2]
[311085646,1704900657266,-500.0,0.00030684,2]
[311085647,1704900657275,-500.0,0.00030684,2]
[311085648,1704900657284,-500.0,0.00030684,2]
[311085649,1704900657293,-586.78163867,0.00030684,2]
[311085650,1704900657303,-500.0,0.00030684,2]
[311085651,1704900657312,-500.0,0.00030684,2]
[311085652,1704900657321,-500.0,0.00030684,2]
[311085653,1704900657331,-500.0,0.00030684,2]
[311085654,1704900657340,-500.0,0.00030684,2]
[311085655,1704900657350,-500.0,0.00030684,2]
[311085656,1704900657359,-500.0,0.00030684,2]
[311085657,1704900657368,-500.0,0.00030684,2]
[311085658,1704900657377,-500.0,0.00030684,2]
[311085659,1704900657387,-500.0,0.00030684,2]
[311085660,1704900657398,-531.89515725,0.00030684,2]
[311085661,1704900657407,-500.0,0.00030684,2]
[311085662,1704900657416,-500.0,0.00030684,2]
[311085663,1704900657426,-500.0,0.00030684,2]
[311085664,1704900657435,-500.0,0.00030684,2]
[311085665,1704900657445,-504.81,0.00030684,2]
[311085666,1704900657454,-500.0,0.00030684,2]
[311085667,1704900657464,-500.0,0.00030684,2]
[311085668,1704900657473,-500.0,0.00030684,2]
[311085669,1704900657483,-500.0,0.00030684,2]
[311085670,1704900657492,-500.0,0.00030684,2]
[311085671,1704900657501,-500.0,0.00030684,2]
[311085672,1704900657515,-500.0,0.00030684,2]
[311085673,1704900657525,-897.0,0.00030684,2]
[311085674,1704900657535,-1597.96,0.00030684,2]
[311085675,1704900657546,-584.80070372,0.00030684,2]
[311085676,1704900657556,-609.86,0.00030684,2]
[311085677,1704900657566,-500.0,0.00030684,2]
[311085678,1704900657576,-500.0,0.00030684,2]
[311085679,1704900657588,-500.0,0.00030684,2]
[311085680,1704900657599,-500.0,0.00030684,2]
[311085681,1704900657610,-500.0,0.00030684,2]
[311085682,1704900657620,-500.0,0.00030684,2]
[311085683,1704900657630,-500.0,0.00030684,2]
[311085684,1704900657640,-500.0,0.00030684,2]
[311085685,1704900657651,-500.0,0.00030684,2]
[311085686,1704900657661,-500.0,0.00030684,2]
[311085687,1704900657672,-500.0,0.00030684,2]
[311085688,1704900657684,-500.0,0.00030684,2]
[311085689,1704900657694,-591.73706601,0.00030684,2]
[311085690,1704900657704,-500.0,0.00030684,2]
[311085691,1704900657715,-500.0,0.00030684,2]
[311085692,1704900657724,-500.0,0.00030684,2]
[311085693,1704900657735,-500.0,0.00030684,2]
[311085694,1704900657745,-500.0,0.00030684,2]
[311085695,1704900657758,-500.0,0.00030684,2]
[311085696,1704900657770,-625.42,0.00030684,2]
[311085697,1704900657781,-500.0,0.00030684,2]
[311085698,1704900657791,-500.0,0.00030684,2]
[311085699,1704900657801,-500.0,0.00030684,2]
[311085700,1704900657811,-500.0,0.00030684,2]
[311085701,1704900657821,-500.0,0.00030684,2]
[311085702,1704900657832,-1088.6,0.00030684,2]
[311085703,1704900657841,-500.0,0.00030684,2]
[311085704,1704900657851,-500.0,0.00030684,2]
[311085705,1704900657861,-527.50085903,0.00030684,2]
[311085706,1704900657871,-500.0,0.00030684,2]
[311085707,1704900657881,-785.49,0.00030684,2]
[311085708,1704900657890,-975.89,0.00030684,2]
[311085709,1704900657900,-500.0,0.00030684,2]
[311085710,1704900657910,-1305.85,0.00030684,2]
[311085711,1704900657919,-500.0,0.00030684,2]
[311085712,1704900657929,-500.0,0.00030684,2]
[311085713,1704900657938,-500.0,0.00030684,2]
[311085714,1704900657948,-500.0,0.00030684,2]
[311085715,1704900657957,-1671.48,0.00030684,2]
[311085716,1704900657967,-500.0,0.00030684,2]
[311085717,1704900657978,-500.0,0.00030684,2]
[311085718,1704900657987,-1079.69,0.00030684,2]
[311085719,1704900657997,-500.0,0.00030684,2]
[311085720,1704900658013,-500.0,0.00030684,2]
[311085721,1704900658023,-1708.78,0.00030684,2]
[311085722,1704900658033,-500.0,0.00030684,2]
[311085723,1704900658042,-500.0,0.00030684,2]
[311085724,1704900658054,-500.0,0.00030684,2]
[311085725,1704900658064,-12281.0,0.00030684,2]
[311085726,1704900658074,-500.0,0.00030684,2]
[311085727,1704900658084,-782.34,0.00030684,2]
[311085728,1704900658094,-500.0,0.00030684,2]
[311085729,1704900658104,-500.0,0.00030684,2]
[311085730,1704900658114,-500.0,0.00030684,2]
[311085731,1704900658124,-4515.22,0.00030684,2]
[311085732,1704900658135,-500.0,0.00030684,2]
[311085733,1704900658144,-500.0,0.00030684,2]
[311085734,1704900658154,-8836.14,0.00030684,2]
[311085735,1704900658163,-500.0,0.00030684,2]
[311085736,1704900658173,-707.11,0.00030684,2]
[311085737,1704900658184,-500.0,0.00030684,2]
[311085738,1704900658193,-500.0,0.00030684,2]
[311085739,1704900658203,-884.97,0.00030684,2]
[311085740,1704900658213,-2259.76,0.00030684,2]
[311085741,1704900658223,-616.1,0.00030684,2]
[311085742,1704900658234,-3899.84,0.00030684,2]
[311085743,1704900658243,-500.0,0.00030684,2]
[311085744,1704900658253,-500.0,0.00030684,2]
[311085745,1704900658268,-500.0,0.00030684,2]
[311085746,1704900658277,-500.0,0.00030684,2]
[311085747,1704900658287,-500.0,0.00030684,2]
[311085748,1704900658296,-615.33,0.00030684,2]
[311085749,1704900658306,-4323.21,0.00030684,2]
[311085750,1704900658316,-1420.6,0.00030684,2]
[311085751,1704900658326,-500.0,0.00030684,2]
[311085752,1704900658336,-500.0,0.00030684,2]
[311085753,1704900658346,-2046.46,0.00030684,2]
[311085754,1704900658356,-4599.5,0.00030684,2]
[311085755,1704900658366,-712.95,0.00030684,2]
[311085756,1704900658377,-209.27094642,0.00030684,2]
[311085757,1704900658387,-500.0,0.00030684,2]
[311085758,1704900658397,-500.0,0.00030684,2]
[311085759,1704900658407,-795.41,0.00030684,2]
[311085760,1704900658417,-2281.05,0.00030684,2]
[311085761,1704900658426,-2521.56,0.00030684,2]
[311085762,1704900658439,-500.0,0.00030684,2]
[311085763,1704900658449,-843.45,0.00030684,2]
[311085764,1704900658459,-500.0,0.00030684,2]
[311085765,1704900658469,-500.0,0.00030684,2]
[311085766,1704900658479,-500.0,0.00030684,2]
[311085767,1704900658489,-870.26,0.00030684,2]
[311085768,1704900658499,-732.44,0.00030684,2]
[311085769,1704900658511,-1564.13,0.00030684,2]
[311085770,1704900658521,-500.0,0.00030684,2]
[311085771,1704900658531,-500.0,0.00030684,2]
[311085772,1704900658541,-500.0,0.00030684,2]
[311085773,1704900658550,-500.0,0.00030684,2]
[311085774,1704900658561,-627.62,0.00030684,2]
[311085775,1704900658570,-1143.64,0.00030684,2]
[311085776,1704900658580,-1380.85,0.00030684,2]
[311085777,1704900658589,-500.0,0.00030684,2]
[311085778,1704900658599,-500.0,0.00030684,2]
[311085779,1704900658609,-500.0,0.00030684,2]
[311085780,1704900658619,-500.0,0.00030684,2]
[311085781,1704900658630,-500.0,0.00030684,2]
[311085782,1704900658639,-500.0,0.00030684,2]
[311085783,1704900658650,-500.0,0.00030684,2]
[311085784,1704900658659,-1618.66,0.00030684,2]
[311085785,1704900658669,-1036.15,0.00030684,2]
[311085786,1704900658678,-9748.06,0.00030684,2]
[311085787,1704900658688,-500.0,0.00030684,2]
[311085788,1704900658698,-566.17,0.00030684,2]
[311085789,1704900658708,-299.0,0.00030684,2]
[311085790,1704900658719,-553.16,0.00030684,2]
[311085791,1704900658729,-500.0,0.00030684,2]
[311085792,1704900658739,-500.0,0.00030684,2]
[311085793,1704900658749,-500.0,0.00030684,2]
[311085794,1704900658761,-500.0,0.00030684,2]
[311085795,1704900658772,-948.2,0.00030684,2]
[311085796,1704900658782,-500.0,0.00030684,2]
[311085797,1704900658792,-609.23,0.00030684,2]
[311085798,1704900658801,-500.0,0.00030684,2]
[311085799,1704900658810,-500.0,0.00030684,2]
[311085800,1704900658820,-2892.66,0.00030684,2]
[311085801,1704900658830,-1143.5,0.00030684,2]
[311085802,1704900658840,-835.76,0.00030684,2]
[311085803,1704900658849,-580.79,0.00030684,2]
[311085804,1704900658860,-500.0,0.00030684,2]
[311085805,1704900658869,-500.0,0.00030684,2]
[311085806,1704900658880,-500.0,0.00030684,2]
[311085807,1704900658889,-500.0,0.00030684,2]
[311085808,1704900658901,-500.0,0.00030684,2]
[311085809,1704900658911,-500.0,0.00030684,2]
[311085810,1704900658921,-500.0,0.00030684,2]
[311085811,1704900658931,-500.0,0.00030684,2]
[311085812,1704900658941,-500.0,0.00030684,2]
[311085813,1704900658954,-1063.42,0.00030684,2]
[311085814,1704900658964,-936.74,0.00030684,2]
[311085815,1704900658975,-500.0,0.00030684,2]
[311085816,1704900658990,-500.0,0.00030684,2]
[311085817,1704900659002,-500.0,0.00030684,2]
[311085818,1704900659020,-559.16,0.00030684,2]
[311085819,1704900659030,-1234.82,0.00030684,2]
[311085820,1704900659040,-3117.76,0.00030684,2]
[311085821,1704900659050,-500.0,0.00030684,2]
[311085822,1704900659060,-660.85,0.00030684,2]
[311085823,1704900659070,-532.39,0.00030684,2]
[311085824,1704900659080,-681.75,0.00030684,2]
[311085825,1704900659089,-500.0,0.00030684,2]
[311085826,1704900659098,-1276.4,0.00030684,2]
[311085827,1704900659108,-540.08,0.00030684,2]
[311085828,1704900659118,-500.0,0.00030684,2]
[311085829,1704900659128,-1062.18,0.00030684,2]
[311085830,1704900659139,-500.0,0.00030684,2]
[311085831,1704900659149,-500.0,0.00030684,2]
[311085832,1704900659158,-765.99,0.00030684,2]
[311085833,1704900659168,-28468.17,0.00030684,2]
[311085834,1704900659177,-500.0,0.00030684,2]
[311085835,1704900659188,-542.15,0.00030684,2]
[311085836,1704900659198,-2759.59,0.00030684,2]
[311085837,1704900659207,-700.16,0.00030684,2]
[311085838,1704900659217,-500.0,0.00030684,2]
[311085839,1704900659227,-671.02,0.00030684,2]
[311085840,1704900659237,-500.0,0.00030684,2]
[311085841,1704900659247,-341.60502276,0.00030684,2]
[311085842,1704900659259,-500.0,0.00030684,2]
[311085843,1704900659269,-372.25118729,0.00030684,2]
[311085844,1704900659279,-1369.41,0.00030684,2]
[311085845,1704900659289,-192.93776838,0.00030684,2]
[311085846,1704900659298,-539.29,0.00030684,2]
[311085847,1704900659307,-824.64,0.00030684,2]
[311085848,1704900659316,-1279.73,0.00030684,2]
[311085849,1704900659326,-500.0,0.00030684,2]
[311085850,1704900659336,-530.15,0.00030684,2]
[311085851,1704900659346,-500.0,0.00030684,2]
[311085852,1704900659356,-1562.87,0.00030684,2]
[311085853,1704900659366,-4484.28,0.00030684,2]
[311085854,1704900659375,-500.0,0.00030684,2]
[311085855,1704900659386,-500.0,0.00030684,2]
[311085856,1704900659395,-500.0,0.00030684,2]
[311085857,1704900659408,-682.98,0.00030684,2]
[311085858,1704900659417,-5240.86,0.00030684,2]
[311085859,1704900659426,-500.0,0.00030684,2]
[311085860,1704900659436,-500.0,0.00030684,2]
[311085861,1704900659447,-500.0,0.00030684,2]
[311085862,1704900659457,-500.0,0.00030684,2]
[311085863,1704900659467,-1727.37,0.00030684,2]
[311085864,1704900659477,-500.0,0.00030684,2]
[311085865,1704900659487,-3480.61,0.00030684,2]
[311085866,1704900659496,-1211.76,0.00030684,2]
[311085867,1704900659508,-653.43,0.00030684,2]
[311085868,1704900659518,-547.15,0.00030684,2]
[311085869,1704900659527,-500.0,0.00030684,2]
[311085870,1704900659537,-654.46,0.00030684,2]
[311085871,1704900659547,-1452.5,0.00030684,2]
[311085872,1704900659558,-500.0,0.00030684,2]
[311085873,1704900659568,-1039.32,0.00030684,2]
[311085874,1704900659578,-188.81699462,0.00030684,2]
[311085875,1704900659588,-500.0,0.00030684,2]
[311085876,1704900659598,-500.0,0.00030684,2]
[311085877,1704900659608,-1358.05,0.00030684,2]
[311085878,1704900659618,-500.0,0.00030684,2]
[311085879,1704900659628,-1679.87,0.00030684,2]
[311085880,1704900659638,-1748.9,0.00030684,2]
[311085881,1704900659648,-500.0,0.00030684,2]
[311085882,1704900659658,-500.0,0.00030684,2]
[311085883,1704900659668,-500.0,0.00030684,2]
[311085884,1704900659679,-1298.43,0.00030684,2]
[311085885,1704900659689,-709.8,0.00030684,2]
[311085886,1704900659699,-500.0,0.00030684,2]
[311085887,1704900659709,-887.15,0.00030684,2]
[311085888,1704900659719,-500.0,0.00030684,2]
[311085889,1704900659728,-163.23158943,0.00030684,2]
[311085890,1704900659739,-500.0,0.00030684,2]
[311085891,1704900659750,-782.21,0.00030684,2]
[311085892,1704900659763,-1199.95,0.00030684,2]
[311085893,1704900659773,-8279.8,0.00030684,2]
[311085894,1704900659783,-500.0,0.00030684,2]
[311085895,1704900659794,-7290.58,0.00030684,2]
[311085896,1704900659804,-3604.72,0.00030684,2]
[311085897,1704900659815,-1664.94,0.00030684,2]
[311085898,1704900659825,-500.0,0.00030684,2]
[311085899,1704900659836,-500.0,0.00030684,2]
[311085900,1704900659846,-500.0,0.00030684,2]
[311085901,1704900660144,-619.18,0.00030684,2]
[311085902,1704900660156,-588.0,0.00030684,2]
[311085903,1704900660166,-500.0,0.00030684,2]
[311085904,1704900660175,-500.0,0.00030684,2]
[311085905,1704900660186,-500.0,0.00030684,2]
[311085906,1704900660195,-500.0,0.00030684,2]
[311085907,1704900660205,-1381.97,0.00030684,2]
[311085908,1704900660215,-766.49,0.00030684,2]
[311085909,1704900660225,-714.61,0.00030684,2]
[311085910,1704900660236,-1425.14,0.00030684,2]
[311085911,1704900660245,-651.45,0.00030684,2]
[311085912,1704900660255,-1479.95,0.00030684,2]
[311085913,1704900660268,-2002.23,0.00030684,2]
[311085914,1704900660277,-2937.34,0.00030684,2]
[311085915,1704900660287,-500.0,0.00030684,2]
[311085916,1704900660296,-1124.46,0.00030684,2]
[311085917,1704900660305,-979.93,0.00030684,2]
[311085918,1704900660315,-500.0,0.00030684,2]
[311085919,1704900660325,-500.0,0.00030684,2]
[311085920,1704900660335,-800.83,0.00030684,2]
[311085921,1704900660344,-667.52,0.00030684,2]
[311085922,1704900660354,-753.48,0.00030684,2]
[311085923,1704900660363,-579.58,0.00030684,2]
[311085924,1704900660372,-862.17,0.00030684,2]
[311085925,1704900660382,-500.0,0.00030684,2]
[311085926,1704900660391,-500.0,0.00030684,2]
[311085927,1704900660400,-2898.57,0.00030684,2]
[311085928,1704900660410,-500.0,0.00030684,2]
[311085929,1704900660419,-500.0,0.00030684,2]
[311085930,1704900660428,-496.46554901,0.00030684,2]
[311085931,1704900660437,-500.0,0.00030684,2]
[311085932,1704900660447,-1266.52,0.00030684,2]
[311085933,1704900660456,-615.9191811,0.00030684,2]
[311085934,1704900660466,-167.58333317,0.00030684,2]
[311085935,1704900660476,-588.55,0.00030684,2]
[311085936,1704900660485,-500.0,0.00030684,2]
[311085937,1704900660494,-500.0,0.00030684,2]
[311085938,1704900660504,-955.19,0.00030684,2]
[311085939,1704900660518,-685.11,0.00030684,2]
[311085940,1704900660527,-4860.5,0.00030684,2]
[311085941,1704900660537,-500.0,0.00030684,2]
[311085942,1704900660547,-162.98,0.000307,2]
[311085943,1704900660557,-500.0,0.00030852,2]
[311085944,1704900660567,-170.93602414,0.00030858,2]
[311085945,1704900660578,-255.22090163,0.000309,2]
[311085946,1704900660588,-255.22090096,0.000309,2]
[311085947,1704900660598,-255.22090096,0.000309,2]
[311085948,1704900660609,-150.0,0.000309,3]
[311085949,1704900660618,-1991.5077144,0.00030955,2]
[311085950,1704900660628,-54963.824771,0.00030955,2]
[311085951,1704900660639,-1143.5346289,0.00030955,2]
[311085952,1704900660650,-13535.2362515,0.00030955,2]
[311085953,1704900660660,-26686.47276514,0.00030955,2]
[311085954,1704900660669,-500.0,0.00030958,2]
[311085955,1704900660680,-500.0,0.00030958,2]
[311085956,1704900660691,-500.0,0.00030958,2]
[311085957,1704900660701,-500.0,0.00030958,2]
[311085958,1704900660712,-252.88613234,0.00030958,2]
[311085959,1704900660722,-500.0,0.00030958,2]
[311085960,1704900660732,-500.0,0.00030958,2]
[311085961,1704900660744,-500.0,0.00030958,2]